bitfinex/quotes_SOLUSD_20220129
["timestamp","ask_amount","ask_price","bid_price","bid_amount"]
[1643477915313,36.93957411,94.602,94.499,24.4591]
[1643477915510,6.0,94.592,94.5,0.25]
[1643477915818,25.1221,94.591,94.5,0.25]
[1643477916110,15.14,94.61,94.502,63.32]
[1643477916111,1.46464213,94.61,94.502,63.32]
[1643477916411,0.25,94.609,94.51,63.32]
[1643477916610,0.25,94.609,94.52,6.0]
[1643477916809,0.25,94.609,94.521,0.25]
[1643477917009,0.25,94.609,94.522,6.0]
[1643477917209,0.25,94.609,94.523,22.8486]
[1643477917411,0.25,94.609,94.531,6.0]
[1643477917610,0.25,94.618,94.533,6.0]
[1643477917811,0.25,94.618,94.534,129.8665]
[1643477918014,0.25,94.618,94.544,6.0]
[1643477918310,0.25,94.618,94.545,0.25]
[1643477918509,0.25,94.618,94.545,6.25]
[1643477919812,6.0,94.609,94.545,6.25]
[1643477920212,0.25,94.608,94.545,6.25]
[1643477921614,0.25,94.608,94.546,2.27308271]
[1643477921816,0.25,94.608,94.547,0.25]
[1643477922014,0.25,94.608,94.556,6.0]
[1643477922416,0.25,94.608,94.557,0.25]
[1643477922615,0.25,94.608,94.557,6.25]
[1643477923018,0.25,94.608,94.557,0.25]
[1643477923421,0.25,94.608,94.54,0.25]
[1643477923632,0.25,94.608,94.532,6.0]
[1643477923819,2.95669142,94.607,94.532,6.0]
[1643477924018,6.0,94.597,94.521,6.0]
[1643477924219,56.14067626,94.596,94.499,2.27302697]
[1643477924419,81.25997626,94.596,94.509,6.0]
[1643477924618,6.0,94.586,94.51,22.9095]
[1643477924820,0.25,94.585,94.511,0.25]
[1643477925219,23.9516,94.585,94.511,0.25]
[1643477925722,41.51962177,94.574,94.51,22.9095]
[1643477925921,41.51962177,94.574,94.509,6.0]
[1643477926120,6.0,94.564,94.5,6.0]
[1643477926322,0.25,94.563,94.5,6.0]
[1643477926521,6.25,94.563,94.5,6.0]
[1643477926724,24.1447,94.573,94.501,6.0]
[1643477926924,0.25,94.562,94.502,24.6392]
[1643477927121,0.25,94.562,94.512,6.0]
[1643477927322,0.25,94.562,94.513,0.25]
[1643477927723,24.1447,94.573,94.513,0.25]
[1643477928021,15.4916,94.624,94.514,2.27302685]
[1643477928022,1.46464213,94.616,94.514,2.27302685]
[1643477928422,22.6739,94.619,94.524,6.0]
[1643477928625,22.6739,94.619,94.525,24.7507]
[1643477928822,43.77823944,94.618,94.525,25.0007]
[1643477929024,43.77823944,94.618,94.535,6.0]
[1643477929222,0.25,94.617,94.535,6.0]
[1643477929423,3.20669142,94.617,94.535,6.0]
[1643477929623,0.25,94.617,94.536,0.25]
[1643477930144,0.25,94.617,94.537,2.27302685]
[1643477930344,0.25,94.617,94.538,0.25]
[1643477930545,0.25,94.617,94.547,6.0]
[1643477931144,0.25,94.617,94.525,24.7507]
[1643477931349,6.0,94.608,94.526,0.25]
[1643477931545,23.1204,94.607,94.526,0.25]
[1643477931745,23.3704,94.607,94.526,0.25]
[1643477932346,23.3704,94.607,94.515,24.7128]
[1643477932548,38.47672332,94.596,94.515,24.7128]
[1643477932847,23.067,94.595,94.501,24.4982]
[1643477933047,6.0,94.585,94.511,6.0]
[1643477933249,0.25,94.584,94.511,6.0]
[1643477933646,24.5061,94.584,94.512,23.9073]
[1643477933851,0.25,94.584,94.512,24.1573]
[1643477934047,0.25,94.584,94.522,6.0]
[1643477934247,0.25,94.584,94.523,24.4613]
[1643477934447,0.25,94.585,94.523,24.4613]
[1643477936050,24.8488,94.585,94.523,24.4613]
[1643477936449,43.33789192,94.574,94.523,24.4613]
[1643477937054,6.0,94.564,94.501,105.6]
[1643477937251,6.0,94.564,94.511,6.0]
[1643477937653,43.33789192,94.574,94.511,6.0]
[1643477938356,43.33789192,94.574,94.512,0.25]
[1643477938554,43.33789192,94.574,94.512,24.9413]
[1643477938957,0.25,94.585,94.522,6.0]
[1643477939359,0.25,94.605,94.523,0.25]
[1643477939560,0.25,94.605,94.523,6.25]
[1643477939961,34.90328602,94.605,94.523,6.25]
[1643477940460,34.90328602,94.605,94.524,24.432]
[1643477940865,6.0,94.595,94.534,6.0]
[1643477941061,6.0,94.595,94.535,24.432]
[1643477941262,0.25,94.594,94.535,24.682]
[1643477941561,6.25,94.594,94.535,24.682]
[1643477943661,6.0,94.593,94.535,24.682]
[1643477943862,0.25,94.592,94.535,24.682]
[1643477944061,42.6846632,94.583,94.535,24.682]
[1643477944261,0.25,94.582,94.535,24.682]
[1643477945064,0.25,94.582,94.535,0.25]
[1643477945264,0.25,94.582,94.524,6.0]
[1643477945666,0.25,94.582,94.525,6.0]
[1643477945863,0.25,94.582,94.525,6.25]
[1643477946564,0.25,94.582,94.525,0.25]
[1643477946763,22.8483,94.582,94.516,0.25]
[1643477946964,42.6846632,94.583,94.516,0.25]
[1643477947164,1.46464213,94.598,94.525,6.0]
[1643477947365,0.25,94.597,94.526,130.0246]
[1643477947566,6.0,94.595,94.536,6.0]
[1643477947768,6.0,94.595,94.537,0.25]
[1643477948170,43.5561247,94.594,94.537,0.25]
[1643477948370,43.8061247,94.594,94.536,6.0]
[1643477948597,43.8061247,94.594,94.526,24.1746]
[1643477948769,67.8014247,94.594,94.508,1.46651771]
[1643477948970,67.8014247,94.594,94.508,105.6]
[1643477949769,67.8014247,94.594,94.515,0.25]
[1643477950869,67.8014247,94.594,94.515,24.6193]
[1643477950870,6.0,94.584,94.515,24.6193]
[1643477951270,0.25,94.583,94.515,0.25]
[1643477951471,23.9188,94.583,94.515,0.25]
[1643477951670,23.9188,94.583,94.509,1.71651771]
[1643477951873,34.5461358,94.572,94.509,0.25]
[1643477952075,6.0,94.562,94.509,0.25]
[1643477952275,23.5704,94.571,94.509,0.25]
[1643477952475,23.5704,94.571,94.512,6.0]
[1643477952677,0.25,94.57,94.516,6.0]
[1643477952974,0.25,94.57,94.517,0.25]
[1643477953581,1.46464213,94.595,94.524,105.6]
[1643477953778,1.46464213,94.595,94.525,0.25]
[1643477953978,1.46464213,94.608,94.534,6.0]
[1643477954178,1.46464213,94.617,94.535,45.9027]
[1643477954378,1.46464213,94.618,94.535,46.1527]
[1643477954578,43.01020628,94.617,94.545,6.0]
[1643477954780,43.01020628,94.617,94.546,0.25]
[1643477955383,43.01020628,94.617,94.546,25.0875]
[1643477955583,43.01020628,94.617,94.556,6.0]
[1643477955785,0.25,94.616,94.557,0.25]
[1643477955989,1.46464213,94.621,94.557,0.25]
[1643477956205,1.46464213,94.621,94.557,26.63254636]
[1643477956403,1.46464213,94.634,94.558,2.27294636]
[1643477956605,1.46464213,94.646,94.568,6.0]
[1643477956807,1.46464213,94.646,94.572,1.46651771]
[1643477957108,33.14946123,94.645,94.582,6.0]
[1643477957304,33.14946123,94.645,94.583,129.152]
[1643477957505,33.14946123,94.645,94.593,6.0]
[1643477957708,33.14946123,94.645,94.594,105.6]
[1643477957909,33.14946123,94.645,94.594,0.25]
[1643477958107,33.14946123,94.645,94.604,6.0]
[1643477958308,33.14946123,94.645,94.583,23.302]
[1643477958508,33.14946123,94.645,94.594,6.0]
[1643477958908,1.46464213,94.674,94.595,0.25]
[1643477959110,1.46464213,94.679,94.595,25.05924636]
[1643477959311,1.46464213,94.683,94.595,25.05924636]
[1643477959510,6.0,94.673,94.605,6.0]
[1643477959910,39.80737122,94.672,94.605,6.0]
[1643477960110,39.80737122,94.672,94.604,6.0]
[1643477960711,39.80737122,94.672,94.605,2.27294636]
[1643477961012,39.80737122,94.672,94.615,6.0]
[1643477961411,39.80737122,94.672,94.616,0.25]
[1643477962713,39.80737122,94.672,94.605,0.25]
[1643477962915,39.80737122,94.672,94.605,105.85]
[1643477963115,39.80737122,94.672,94.615,6.0]
[1643477963414,39.80737122,94.672,94.616,0.25]
[1643477965417,39.80737122,94.672,94.615,6.0]
[1643477965616,39.80737122,94.672,94.616,2.27294636]
[1643477965818,2000.0,94.7,94.616,107.87294636]
[1643477966015,2000.0,94.7,94.626,6.0]
[1643477966215,2000.0,94.7,94.627,105.6]
[1643477966418,2000.0,94.7,94.627,2.27294636]
[1643477966615,2000.0,94.7,94.637,6.0]
[1643477966816,35.67508068,94.699,94.637,6.0]
[1643477967017,35.67508068,94.699,94.62,6.0]
[1643477967515,35.67508068,94.699,94.622,6.0]
[1643477967917,35.67508068,94.699,94.631,6.0]
[1643477968319,35.67508068,94.699,94.632,2.52294636]
[1643477968521,35.67508068,94.699,94.642,6.0]
[1643477968817,0.25,94.698,94.643,0.25]
[1643477969020,0.25,94.698,94.643,6.25]
[1643477969718,0.25,94.698,94.62,6.0]
[1643477969719,6.0,94.689,94.62,6.0]
[1643477969917,6.0,94.689,94.627,6.0]
[1643477970119,0.25,94.688,94.621,0.25]
[1643477970919,0.25,94.688,94.622,2.27294636]
[1643477971118,0.25,94.688,94.632,6.0]
[1643477971322,0.25,94.698,94.633,0.25]
[1643477973523,6.0,94.689,94.633,0.25]
[1643477974127,6.0,94.689,94.634,2.27294636]
[1643477974324,6.0,94.689,94.635,0.25]
[1643477974525,6.0,94.689,94.644,6.0]
[1643477974727,6.0,94.689,94.636,2.27294636]
[1643477975125,6.0,94.689,94.58,25.46167911]
[1643477975126,6.0,94.689,94.587,2.27294636]
[1643477975324,46.6204,94.688,94.587,2.27294636]
[1643477975529,46.6204,94.688,94.581,23.5987]
[1643477975530,6.0,94.678,94.591,2.27294636]
[1643477975729,44.67782665,94.677,94.591,2.27294636]
[1643477975930,44.92782665,94.677,94.581,23.5987]
[1643477976130,6.0,94.667,94.579,2.27294636]
[1643477976330,0.25,94.666,94.579,2.27294636]
[1643477976530,6.0,94.66,94.579,2.27294636]
[1643477976733,45.98754522,94.659,94.579,2.27294636]
[1643477976930,45.98754522,94.659,94.58,0.25]
[1643477977131,45.98754522,94.659,94.589,6.0]
[1643477977335,6.0,94.649,94.59,0.25]
[1643477977533,6.0,94.649,94.591,6.0]
[1643477978133,6.0,94.649,94.581,2.26659322]
[1643477978534,6.0,94.648,94.571,2.26659322]
[1643477978733,6.0,94.648,94.575,6.0]
[1643477978935,24.2961,94.658,94.582,105.6]
[1643477979136,24.2961,94.658,94.592,6.0]
[1643477979441,0.25,94.657,94.593,0.25]
[1643477979835,24.2961,94.658,94.593,2.26659322]
[1643477980035,24.2961,94.658,94.603,6.0]
[1643477980239,24.2961,94.658,94.592,6.0]
[1643477980440,45.98754522,94.659,94.593,2.26659322]
[1643477980638,45.98754522,94.659,94.603,6.0]
[1643477980838,6.0,94.649,94.593,12.87659322]
[1643477981040,6.0,94.649,94.593,10.61]
[1643477981241,6.0,94.649,94.568,2.26659322]
[1643477981441,6.0,94.649,94.58,0.25]
[1643477981640,23.6346,94.658,94.58,0.25]
[1643477981841,0.25,94.657,94.58,0.25]
[1643477982048,6.0,94.648,94.58,0.25]
[1643477982243,0.25,94.647,94.58,0.25]
[1643477982458,0.25,94.647,94.575,6.0]
[1643477982856,0.25,94.647,94.563,6.0]
[1643477983059,0.25,94.647,94.556,6.0]
[1643477983660,0.25,94.647,94.557,6.0]
[1643477984157,0.25,94.647,94.558,0.25]
[1643477984559,6.0,94.645,94.558,63.32]
[1643477984758,43.62179011,94.644,94.568,6.0]
[1643477984958,43.62179011,94.644,94.569,105.6]
[1643477985258,43.62179011,94.644,94.569,131.33782695]
[1643477985458,43.62179011,94.644,94.571,105.6]
[1643477985658,43.62179011,94.644,94.58,105.6]
[1643477985859,43.37179011,94.644,94.581,0.25]
[1643477986060,43.37179011,94.644,94.583,105.6]
[1643477986259,43.37179011,94.644,94.584,0.25]
[1643477986458,43.37179011,94.644,94.593,6.0]
[1643477986861,43.37179011,94.644,94.594,105.85]
[1643477987063,43.37179011,94.644,94.604,6.0]
[1643477987260,43.37179011,94.644,94.605,0.25]
[1643477987861,23.6346,94.658,94.605,0.25]
[1643477988861,45.17785855,94.657,94.605,0.25]
[1643477989962,45.17785855,94.657,94.605,105.85]
[1643477990164,45.17785855,94.657,94.605,0.25]
[1643477990362,45.17785855,94.657,94.615,6.0]
[1643477990865,45.17785855,94.657,94.616,0.25]
[1643477991863,45.17785855,94.657,94.61,0.25]
[1643477992464,45.17785855,94.657,94.609,6.0]
[1643477993264,0.25,94.656,94.609,6.0]
[1643477995266,0.25,94.656,94.61,0.25]
[1643477995767,45.17785855,94.657,94.61,0.25]
[1643477996568,0.25,94.656,94.61,0.25]
[1643477996768,6.0,94.647,94.585,0.25]
[1643477998370,6.0,94.647,94.585,6.25]
[1643477999772,0.25,94.656,94.585,6.25]
[1643477999969,0.25,94.656,94.586,22.913]
[1643478000171,0.25,94.656,94.595,6.0]
[1643478000373,0.25,94.656,94.596,6.25]
[1643478001271,45.17785855,94.657,94.596,6.25]
[1643478002672,45.17785855,94.657,94.597,105.6]
[1643478002876,24.1234,94.664,94.598,0.25]
[1643478003073,24.1234,94.664,94.607,6.0]
[1643478003273,24.1234,94.664,94.608,0.25]
[1643478003674,24.1234,94.664,94.609,6.0]
[1643478003874,33.69835273,94.663,94.61,0.25]
[1643478004278,0.25,94.662,94.61,0.25]
[1643478004677,33.69835273,94.663,94.61,0.25]
[1643478005082,33.69835273,94.663,94.611,2.2562017]
[1643478005279,0.25,94.662,94.612,0.25]
[1643478005580,0.25,94.662,94.621,6.0]
[1643478005979,0.25,94.662,94.619,6.0]
[1643478007282,0.25,94.662,94.62,0.25]
[1643478007680,0.25,94.662,94.619,6.0]
[1643478008082,0.25,94.662,94.609,13.11]
[1643478008284,0.25,94.662,94.619,6.0]
[1643478009784,33.69835273,94.663,94.619,6.0]
[1643478010785,0.25,94.662,94.62,0.25]
[1643478011188,33.69835273,94.663,94.62,0.25]
[1643478011586,0.25,94.662,94.62,0.25]
[1643478012485,33.69835273,94.663,94.62,0.25]
[1643478013689,33.69835273,94.663,94.619,6.0]
[1643478013886,33.69835273,94.663,94.62,0.25]
[1643478014286,0.25,94.662,94.619,6.0]
[1643478014486,0.25,94.662,94.609,13.11]
[1643478014686,0.25,94.662,94.61,0.25]
[1643478014986,1.71464213,94.662,94.609,13.11]
[1643478015189,1.71464213,94.662,94.619,6.0]
[1643478015587,1.46464213,94.662,94.611,6.0]
[1643478015786,33.69835273,94.663,94.611,6.0]
[1643478016193,33.69835273,94.663,94.612,0.25]
[1643478016592,33.69835273,94.663,94.612,2.5062017]
[1643478016790,33.69835273,94.663,94.612,105.85]
[1643478016987,33.69835273,94.663,94.622,6.0]
[1643478017392,33.69835273,94.663,94.623,6.25]
[1643478018491,1.46464213,94.681,94.624,107.8562017]
[1643478018691,1.46464213,94.688,94.626,105.6]
[1643478018893,1.46464213,94.69,94.634,6.0]
[1643478019091,1.46464213,94.69,94.636,6.0]
[1643478019292,1.46464213,94.69,94.637,0.25]
[1643478019491,24.411,94.698,94.637,0.25]
[1643478019492,35.65400374,94.689,94.638,105.6]
[1643478019691,35.65400374,94.689,94.638,107.8562017]
[1643478019897,35.65400374,94.689,94.648,6.0]
[1643478020299,35.65400374,94.689,94.649,2.5062017]
[1643478020693,35.65400374,94.689,94.649,0.25]
[1643478021294,35.65400374,94.689,94.643,0.25]
[1643478021892,35.65400374,94.689,94.635,6.0]
[1643478021893,35.65400374,94.689,94.636,0.25]
[1643478023094,35.65400374,94.689,94.629,6.25]
[1643478023298,35.65400374,94.689,94.638,6.0]
[1643478023494,35.65400374,94.689,94.639,6.0]
[1643478023714,35.65400374,94.689,94.639,6.25]
[1643478023917,35.65400374,94.689,94.639,6.0]
[1643478024115,35.65400374,94.689,94.64,6.25]
[1643478024320,0.25,94.688,94.64,6.0]
[1643478024516,0.25,94.688,94.62,6.0]
[1643478024719,23.87,94.688,94.62,6.0]
[1643478024917,23.87,94.688,94.613,6.0]
[1643478024918,1.46464213,94.685,94.613,6.0]
[1643478025121,1.46464213,94.684,94.613,6.0]
[1643478025523,1.71464213,94.683,94.613,6.0]
[1643478025719,1.46464213,94.685,94.603,2.2562017]
[1643478025921,1.46464213,94.68,94.586,24.121]
[1643478026120,45.24039145,94.674,94.596,6.0]
[1643478026320,24.5654,94.673,94.596,6.0]
[1643478027224,1.46464213,94.672,94.596,6.0]
[1643478027622,0.25,94.671,94.596,6.0]
[1643478028225,1.71464213,94.671,94.596,6.0]
[1643478028627,6.0,94.661,94.591,6.0]
[1643478028830,0.25,94.66,94.591,6.0]
[1643478029430,40.29453411,94.659,94.591,6.0]
[1643478029931,0.25,94.658,94.591,6.0]
[1643478030534,0.25,94.658,94.592,0.25]
[1643478034136,0.25,94.658,94.581,6.0]
[1643478034337,0.25,94.658,94.582,0.25]
[1643478034536,0.25,94.658,94.589,6.0]
[1643478034739,0.25,94.658,94.59,23.9606]
[1643478034937,0.25,94.658,94.59,24.2106]
[1643478035136,0.25,94.658,94.6,6.0]
[1643478035340,40.29453411,94.659,94.601,0.25]
[1643478035541,0.25,94.658,94.601,0.25]
[1643478036337,40.29453411,94.659,94.601,0.25]
[1643478036538,40.29453411,94.659,94.602,2.2562017]
[1643478036942,40.29453411,94.659,94.612,6.0]
[1643478037338,40.29453411,94.659,94.613,0.25]
[1643478038143,40.29453411,94.659,94.613,6.25]
[1643478039843,40.29453411,94.659,94.612,6.0]
[1643478040243,0.25,94.658,94.612,6.0]
[1643478041250,0.25,94.658,94.613,0.25]
[1643478044473,0.25,94.658,94.612,6.0]
[1643478044676,0.25,94.658,94.613,0.25]
[1643478045078,40.29453411,94.659,94.613,0.25]
[1643478046478,1.46464213,94.683,94.613,0.25]
[1643478046678,1.46464213,94.687,94.613,24.0414]
[1643478046884,1.46464213,94.688,94.613,24.0414]
[1643478047177,1.46464213,94.687,94.623,6.0]
[1643478047382,1.46464213,94.688,94.624,0.25]
[1643478047679,43.71879467,94.686,94.624,0.25]
[1643478047879,43.71879467,94.686,94.624,24.4776]
[1643478048082,43.71879467,94.686,94.634,6.0]
[1643478048280,0.25,94.685,94.635,0.25]
[1643478050685,0.25,94.685,94.634,6.0]
[1643478051189,43.71879467,94.686,94.634,6.0]
[1643478051989,43.71879467,94.686,94.635,6.0]
[1643478052389,43.71879467,94.686,94.636,0.25]
[1643478052788,6.0,94.676,94.636,0.25]
[1643478052992,6.0,94.675,94.636,0.25]
[1643478053386,23.3019,94.685,94.61,6.25]
[1643478053989,23.0519,94.685,94.611,6.0]
[1643478054191,23.0519,94.685,94.611,24.2494]
[1643478054388,23.0519,94.685,94.613,6.0]
[1643478054588,23.0519,94.685,94.621,6.0]
[1643478054788,23.0519,94.685,94.622,24.4994]
[1643478054988,23.0519,94.685,94.632,6.0]
[1643478055388,23.0519,94.685,94.633,0.25]
[1643478058189,43.71879467,94.686,94.633,0.25]
[1643478058389,43.71879467,94.686,94.641,0.30585198]
[1643478058590,43.71879467,94.686,94.645,105.6]
[1643478058793,43.71879467,94.686,94.646,0.25]
[1643478058991,43.71879467,94.686,94.655,6.0]
[1643478059390,43.71879467,94.686,94.656,6.25]
[1643478059590,43.71879467,94.686,94.666,6.0]
[1643478059790,43.71879467,94.686,94.667,0.25]
[1643478060192,43.71879467,94.686,94.644,6.0]
[1643478060391,43.71879467,94.686,94.667,0.25]
[1643478060892,43.71879467,94.686,94.644,6.0]
[1643478061092,43.71879467,94.686,94.645,0.25]
[1643478062493,43.71879467,94.686,94.609,2.25316328]
[1643478062494,0.25,94.685,94.609,2.25316328]
[1643478062694,65.0,94.673,94.573,2.93343954]
[1643478062897,15.14,94.67,94.555,538.32024772]
[1643478063094,6.0,94.66,94.555,538.32024772]
[1643478063295,15.14,94.65,94.555,538.32024772]
[1643478063496,6.0,94.64,94.555,538.32024772]
[1643478063695,21.14,94.64,94.555,538.32024772]
[1643478063894,22.42706504,94.639,94.555,538.32024772]
[1643478064098,28.42706504,94.639,94.566,0.25]
[1643478064395,6.0,94.63,94.566,0.25]
[1643478064595,6.0,94.629,94.566,0.25]
[1643478064796,6.25,94.629,94.566,0.25]
[1643478064994,6.0,94.628,94.566,0.25]
[1643478065397,41.6010367,94.618,94.566,0.25]
[1643478065595,6.0,94.608,94.566,0.25]
[1643478065795,0.25,94.607,94.566,0.25]
[1643478067094,0.25,94.607,94.525,112.9]
[1643478067294,24.9669,94.607,94.526,0.25]
[1643478067494,6.0,94.597,94.526,0.25]
[1643478067694,6.0,94.597,94.525,112.9]
[1643478067895,0.25,94.596,94.525,112.9]
[1643478068095,24.54482301,94.596,94.526,36.5145921]
[1643478069096,24.54482301,94.596,94.527,0.25]
[1643478069300,24.54482301,94.596,94.536,6.0]
[1643478069697,24.54482301,94.596,94.537,0.25]
[1643478070500,6.0,94.586,94.525,112.9]
[1643478070900,0.25,94.585,94.525,112.9]
[1643478071100,6.25,94.585,94.525,112.9]
[1643478071302,11.43,94.585,94.525,112.9]
[1643478071500,22.9212,94.595,94.527,43.76542159]
[1643478071701,24.29482301,94.596,94.535,6.0]
[1643478071904,24.29482301,94.596,94.537,6.0]
[1643478072103,24.29482301,94.596,94.538,6.0]
[1643478072303,24.29482301,94.596,94.539,0.25]
[1643478072601,24.29482301,94.596,94.547,2.5387187]
[1643478072802,0.25,94.595,94.548,0.25]
[1643478073204,0.25,94.595,94.547,2.5387187]
[1643478073402,0.25,94.595,94.546,6.0]
[1643478073803,0.25,94.595,94.51,2.24092512]
[1643478074004,0.25,94.595,94.535,6.0]
[1643478074407,0.25,94.595,94.536,33.24110679]
[1643478074606,0.25,94.595,94.546,6.0]
[1643478075707,0.25,94.595,94.535,6.0]
[1643478076509,0.25,94.595,94.536,38.52120616]
[1643478076909,24.29482301,94.596,94.536,38.52120616]
[1643478077106,24.29482301,94.596,94.546,6.0]
[1643478078309,0.25,94.595,94.546,6.0]
[1643478079310,0.25,94.595,94.536,38.52120616]
[1643478079513,0.25,94.595,94.537,0.25]
[1643478080011,0.25,94.595,94.546,6.0]
[1643478080212,0.25,94.595,94.537,0.25]
[1643478080818,6.0,94.586,94.537,0.25]
[1643478081316,0.25,94.585,94.537,0.25]
[1643478082122,22.9044,94.585,94.516,6.0]
[1643478082322,22.9044,94.585,94.517,0.25]
[1643478082921,22.9044,94.585,94.517,35.19033066]
[1643478083322,6.0,94.575,94.517,0.25]
[1643478083752,0.25,94.574,94.509,0.25]
[1643478084352,34.23872843,94.574,94.509,35.06225667]
[1643478084553,6.0,94.564,94.509,35.06225667]
[1643478084755,0.25,94.563,94.495,2.24695896]
[1643478084954,0.25,94.563,94.505,6.0]
[1643478085153,24.4153,94.573,94.495,2.24695896]
[1643478085354,0.25,94.572,94.505,6.0]
[1643478085954,0.25,94.572,94.506,34.86979069]
[1643478086164,24.4153,94.573,94.506,35.11979069]
[1643478086362,24.4153,94.573,94.506,37.36674965]
[1643478086555,24.4153,94.573,94.516,6.0]
[1643478086854,24.4153,94.573,94.517,0.25]
[1643478087455,6.0,94.563,94.517,0.25]
[1643478087655,0.25,94.572,94.517,0.25]
[1643478088058,0.25,94.572,94.507,0.25]
[1643478088456,6.0,94.563,94.507,0.25]
[1643478088858,0.25,94.562,94.516,6.0]
[1643478089763,0.25,94.572,94.507,0.25]
[1643478089961,6.0,94.563,94.507,0.25]
[1643478090359,0.25,94.562,94.507,0.25]
[1643478091363,0.25,94.572,94.507,0.25]
[1643478091561,0.25,94.572,94.516,6.0]
[1643478091762,0.25,94.572,94.517,0.25]
[1643478091965,24.4153,94.573,94.517,0.25]
[1643478092162,24.4153,94.573,94.524,6.0]
[1643478092366,0.25,94.572,94.525,0.25]
[1643478094900,0.25,94.572,94.514,0.817953]
[1643478095099,0.25,94.572,94.518,6.0]
[1643478095299,0.25,94.572,94.519,0.25]
[1643478095498,0.25,94.572,94.524,6.0]
[1643478095900,0.25,94.572,94.525,0.25]
[1643478096100,0.25,94.572,94.524,6.0]
[1643478096302,0.25,94.572,94.517,6.0]
[1643478096501,0.25,94.572,94.508,0.25]
[1643478096702,0.25,94.572,94.506,6.0]
[1643478097101,0.25,94.572,94.507,44.52732389]
[1643478097605,0.25,94.572,94.517,6.0]
[1643478098003,0.25,94.572,94.518,6.0]
[1643478098405,0.25,94.572,94.519,0.25]
[1643478099506,0.25,94.572,94.518,6.0]
[1643478100004,0.25,94.572,94.519,0.25]
[1643478100207,0.25,94.572,94.518,6.0]
[1643478100804,0.25,94.572,94.519,0.25]
[1643478101207,0.25,94.572,94.518,6.0]
[1643478102006,0.25,94.572,94.517,6.0]
[1643478104208,0.25,94.572,94.518,2.24695896]
[1643478104614,0.25,94.572,94.528,6.0]
[1643478105010,0.25,94.572,94.532,6.0]
[1643478107212,24.4153,94.573,94.533,0.25]
[1643478107412,0.25,94.572,94.532,6.0]
[1643478107613,0.25,94.572,94.528,6.0]
[1643478107811,0.25,94.572,94.501,2.24695896]
[1643478108115,0.25,94.572,94.511,6.0]
[1643478108514,0.25,94.572,94.512,45.62628779]
[1643478109919,0.25,94.572,94.513,0.25]
[1643478112019,24.4153,94.573,94.522,6.0]
[1643478112420,24.4153,94.573,94.523,0.25]
[1643478112621,24.4153,94.573,94.523,6.25]
[1643478119426,24.4153,94.573,94.523,6.0]
[1643478119827,0.25,94.572,94.523,6.0]
[1643478120930,0.25,94.572,94.524,0.25]
[1643478123636,0.25,94.572,94.522,6.0]
[1643478123840,0.25,94.572,94.523,0.25]